bitfinex-derivatives/quotes_SOLF0:USTF0_20240816
["timestamp","ask_amount","ask_price","bid_price","bid_amount"]
[1723809989183,0.0493228,142.43,142.41,3.5101]
[1723809989492,0.0493228,142.43,142.4,0.04808346]
[1723809989876,0.0493228,142.43,142.4,3.55828346]
[1723809990776,0.0493228,142.43,142.41,3.5101]
[1723809994382,0.0493228,142.43,142.4,6.18918346]
[1723809996583,0.0493228,142.43,142.41,3.51]
[1723809999283,3.5590228,142.43,142.4,6.18928346]
[1723810000284,3.51,142.42,142.4,2.67898346]
[1723810000487,0.0493228,142.43,142.4,2.67898346]
[1723810001495,3.5099,142.42,142.4,2.67898346]
[1723810003599,0.0493228,142.43,142.4,2.67898346]
[1723810003803,0.0493228,142.43,142.4,13.45898346]
[1723810004096,0.0493228,142.43,142.41,3.51]
[1723810009196,0.0493228,142.43,142.4,2.67898346]
[1723810009498,0.0493228,142.43,142.4,1.33418346]
[1723810010096,3.5591228,142.43,142.4,4.84448346]
[1723810016101,7.013,142.56,142.42,10.78]
[1723810016302,10.78,142.51,142.43,12.1119]
[1723810016602,14.26301341,142.5,142.43,1.3319]
[1723810016807,3.5083,142.49,142.44,3.5093]
[1723810017004,3.5083,142.49,142.43,1.3319]
[1723810017308,3.5083,142.49,142.45,0.05348985]
[1723810018011,17.71309773,142.5,142.45,0.05348985]
[1723810018401,17.71309773,142.5,142.46,3.5089]
[1723810018596,6.93309773,142.5,142.46,3.5089]
[1723810018803,10.78,142.49,142.46,3.5089]
[1723810019504,14.2882,142.49,142.46,3.5089]
[1723810020526,10.78,142.48,142.45,0.05348985]
[1723810020804,10.78,142.46,142.45,0.05348985]
[1723810021024,14.2889,142.46,142.45,0.05348985]
[1723810022104,10.78,142.47,142.45,0.05348985]
[1723810022304,1.3417,142.49,142.45,0.05348985]
[1723810022705,10.78,142.48,142.46,3.5088]
[1723810026809,10.78,142.47,142.45,0.05348985]
[1723810027112,10.78,142.46,142.45,0.05348985]
[1723810028504,3.5089,142.46,142.45,0.05348985]
[1723810029209,3.5088,142.47,142.45,0.05348985]
[1723810029406,10.78,142.49,142.45,3.56258985]
[1723810029803,3.5087,142.47,142.45,0.05348985]
[1723810030003,1.2742,142.53,142.45,0.05348985]
[1723810030211,10.78,142.5,142.45,0.05348985]
[1723810030404,3.5085,142.48,142.45,0.05348985]
[1723810030605,3.5085,142.48,142.45,3.56248985]
[1723810035718,10.78,142.47,142.45,0.05348985]
[1723810035912,10.78,142.46,142.45,0.05348985]
[1723810036215,14.2889,142.46,142.45,0.05348985]
[1723810037311,3.5089,142.46,142.45,0.05348985]
[1723810037518,3.5088,142.47,142.45,0.05348985]
[1723810038021,14.2885,142.48,142.45,0.05348985]
[1723810038214,10.78,142.48,142.45,0.05348985]
[1723810039809,3.5088,142.47,142.45,0.05348985]
[1723810040618,3.5089,142.46,142.45,0.05348985]
[1723810042007,30.4489,142.46,142.45,0.05348985]
[1723810042417,26.94,142.46,142.39,1.2832]
[1723810042718,26.94,142.43,142.34,26.94]
[1723810042914,3.5108,142.39,142.36,3.5112]
[1723810043423,3.56210196,142.39,142.36,3.55724993]
[1723810043717,3.5109,142.38,142.36,0.04604993]
[1723810045320,0.05130196,142.39,142.36,26.98604993]
[1723810045512,0.05130196,142.39,142.37,1.3265]
[1723810045714,0.05130196,142.39,142.37,2.6186]
[1723810048717,0.05130196,142.39,142.37,29.5586]
[1723810048921,0.05130196,142.39,142.38,3.5109]
[1723810049422,26.94,142.47,142.37,29.5586]
[1723810050326,3.5096,142.44,142.41,3.5101]
[1723810050628,30.47572121,142.5,142.41,0.04908141]
[1723810050817,3.5093,142.45,142.44,0.04609981]
[1723810058928,26.94,142.47,142.44,0.04609981]
[1723810059929,3.5091,142.45,142.44,0.04609981]
[1723810060428,3.509,142.46,142.44,0.04609981]
[1723810062230,3.5091,142.45,142.44,0.04609981]
[1723810069924,3.5091,142.46,142.44,0.04609981]
[1723810070534,3.5088,142.47,142.44,3.55549981]
[1723810074033,3.5085,142.48,142.45,3.5091]
[1723810075137,230.0,142.55,142.45,10.78]
[1723810075338,10.78,142.52,142.45,10.78]
[1723810075634,3.5077,142.51,142.49,0.05389109]
[1723810077736,10.78,142.52,142.49,3.56209109]
[1723810077737,14.2875,142.52,142.49,3.56209109]
[1723810077927,3.5075,142.52,142.49,3.56209109]
[1723810080041,3.5075,142.52,142.49,4.88619109]
[1723810080236,3.5066,142.56,142.52,3.5073]
[1723810080441,10.78,142.57,142.52,3.5073]
[1723810080734,10.78,142.57,142.53,0.05411053]
[1723810080943,3.5069,142.54,142.53,0.05411053]
[1723810081337,10.78,142.57,142.53,0.05411053]
[1723810081635,10.78,142.55,142.53,0.05411053]
[1723810081843,3.5069,142.54,142.53,0.05411053]
[1723810082439,14.2868,142.55,142.53,0.05411053]
[1723810084139,3.5069,142.54,142.53,0.05411053]
[1723810084636,14.2868,142.55,142.53,0.05411053]
[1723810085444,3.5069,142.54,142.53,0.05411053]
[1723810088147,14.2869,142.54,142.53,0.05411053]
[1723810093765,3.508,142.5,142.46,4.02]
[1723810093955,10.78,142.49,142.42,10.78]
[1723810094356,3.5084,142.48,142.42,10.78]
[1723810094855,0.05024915,142.46,142.44,10.83141917]
[1723810095056,4.02,142.49,142.44,10.78]
[1723810095264,0.04726146,142.46,142.44,10.82597268]
[1723810095555,10.78,142.54,142.45,10.78]
[1723810095761,4.02,142.53,142.48,10.78]
[1723810095952,3.5083,142.49,142.46,3.5088]
[1723810096157,14.8,142.53,142.46,10.78]
[1723810096352,14.8,142.53,142.47,1.2462]
[1723810096560,3.5073,142.53,142.49,3.5081]
[1723810096754,4.02,142.52,142.49,3.55526976]
[1723810096955,3.5073,142.53,142.49,0.04716976]
[1723810097160,7.5273,142.53,142.49,0.04716976]
[1723810097557,1.3133,142.59,142.49,10.82716976]
[1723810097757,10.78,142.57,142.53,0.04988876]
[1723810097975,10.78,142.55,142.53,0.04988876]
[1723810098451,3.51533219,142.57,142.53,0.04988876]
[1723810098659,4.02,142.56,142.53,0.04988876]
[1723810099365,3.5069,142.55,142.53,0.04988876]
[1723810099561,4.02,142.56,142.53,0.04988876]
[1723810099962,14.2869,142.55,142.53,0.04988876]
[1723810100159,4.02,142.56,142.53,0.04988876]
[1723810100466,43.12,142.62,142.53,0.04988876]
[1723810100659,10.78,142.58,142.53,0.04988876]
[1723810101065,3.5063,142.57,142.53,3.55688876]
[1723810102760,10.78,142.58,142.53,0.04988876]
[1723810102761,14.286,142.58,142.53,0.04988876]
[1723810103361,14.8,142.58,142.53,0.04988876]
[1723810103566,7.5257,142.59,142.53,0.04988876]
[1723810103770,7.5257,142.59,142.55,3.5065]
[1723810104266,3.506,142.58,142.55,3.5065]
[1723810104468,4.02,142.59,142.55,3.5065]
[1723810105164,7.5258,142.59,142.53,0.04988876]
[1723810105468,3.5058,142.59,142.56,3.5064]
[1723810106173,3.5058,142.59,142.54,12.1162]
[1723810106174,4.02,142.66,142.58,10.78]
[1723810106470,3.5044,142.65,142.61,3.505]
[1723810107061,3.5041,142.66,142.62,3.5048]
[1723810107466,10.78,142.67,142.62,3.5048]
[1723810107669,3.5042,142.66,142.63,0.04705021]
[1723810108461,3.5043,142.65,142.63,0.04705021]
[1723810110168,3.5045,142.64,142.63,0.04705021]
[1723810110471,10.78,142.67,142.63,0.04705021]
[1723810110969,3.5044,142.65,142.63,0.04705021]
[1723810112864,3.5045,142.64,142.63,0.04705021]
[1723810114272,3.5053,142.61,142.54,1.3362]
[1723810114489,3.5053,142.61,142.55,12.0814]
[1723810114673,4.12,142.66,142.58,3.5058]
[1723810114980,10.78,142.64,142.57,10.78]
[1723810115476,3.55033615,142.62,142.59,0.04736652]
[1723810115774,0.04523615,142.62,142.59,0.04736652]
[1723810115978,0.04523615,142.62,142.59,3.55286652]
[1723810116675,0.04523615,142.62,142.6,3.5054]
[1723810116977,0.04523615,142.62,142.59,0.04736652]
[1723810117375,0.04523615,142.62,142.59,3.55296652]
[1723810117376,3.55033615,142.62,142.59,3.55296652]
[1723810118464,0.04523615,142.62,142.6,3.5054]
[1723810119471,3.55023615,142.62,142.59,3.55296652]
[1723810125472,0.04523615,142.62,142.59,0.04736652]
[1723810125980,3.5055,142.6,142.59,0.04736652]
[1723810134284,30.4255,142.6,142.59,0.04736652]
[1723810136094,3.5065,142.56,142.53,3.5071]
[1723810137395,3.55067378,142.56,142.53,3.55605373]
[1723810138090,3.55067378,142.56,142.53,0.04895373]
[1723810140496,3.55067378,142.56,142.53,3.55615373]
[1723810140699,3.55067378,142.56,142.53,0.04895373]
[1723810140901,0.04417378,142.56,142.53,0.04895373]
[1723810141097,0.04417378,142.56,142.54,10.78]
[1723810141692,0.04417378,142.56,142.54,14.2868]
[1723810142294,0.04417378,142.56,142.53,0.04895373]
[1723810142798,0.04417378,142.56,142.54,3.5069]
[1723810143232,0.04417378,142.56,142.53,0.04895373]
[1723810144505,10.78,142.54,142.46,1.3155]
[1723810144709,10.78,142.51,142.46,1.3155]
[1723810144911,3.5083,142.49,142.46,1.3155]
[1723810145505,3.5085,142.48,142.46,1.36456897]
[1723810146107,3.55969517,142.49,142.46,1.36456897]
[1723810146307,0.05139517,142.49,142.46,1.36456897]
[1723810146712,0.05139517,142.49,142.46,28.30456897]
[1723810147216,0.05139517,142.49,142.47,3.5085]
[1723810150608,0.05139517,142.49,142.48,3.5084]
[1723810159651,0.05139517,142.49,142.46,1.36456897]
[1723810160014,0.05139517,142.49,142.47,3.5085]
[1723810160623,0.05139517,142.49,142.48,3.5084]
[1723810161621,0.05139517,142.49,142.47,3.5086]
[1723810162122,0.05139517,142.49,142.46,1.36456897]
[1723810162123,3.5087,142.47,142.46,0.04906897]
[1723810162323,4.21139517,142.49,142.46,0.04906897]
[1723810162715,3.5085,142.48,142.46,0.04906897]
[1723810164014,3.5087,142.47,142.46,0.04906897]
[1723810164522,30.4487,142.47,142.46,0.04906897]
[1723810165921,14.2887,142.47,142.46,0.04906897]
[1723810167019,17.78115844,142.47,142.46,0.04906897]
[1723810167214,3.5096,142.44,142.41,1.2456]
[1723810167415,3.5096,142.44,142.4,6.1471]
[1723810167416,10.78,142.44,142.4,6.1471]
[1723810167926,31.12,142.45,142.28,35.0865]
[1723810168230,26.96,142.43,142.34,2.6282]
[1723810168417,0.05380195,142.38,142.35,3.56175623]
[1723810168827,4.16,142.41,142.34,2.6282]
[1723810169125,4.16,142.41,142.35,28.2192]
[1723810169323,0.05345483,142.38,142.35,28.2654943]
[1723810169833,4.16,142.42,142.35,28.2654943]
[1723810170221,7.6699,142.42,142.38,3.5107]
[1723810170627,7.6699,142.42,142.37,26.96]
[1723810171017,0.04521091,142.41,142.38,3.56276049]
[1723810172722,0.04521091,142.41,142.38,0.05206049]
[1723810172723,3.55541091,142.41,142.38,0.05206049]
[1723810175220,3.5104,142.4,142.38,0.05206049]
[1723810176622,27.00521091,142.41,142.38,0.05206049]
[1723810177629,3.5104,142.4,142.38,0.05206049]
[1723810185631,30.51541091,142.41,142.38,0.05206049]
[1723810186536,30.51541091,142.41,142.38,3.56296049]
[1723810188035,10.83521091,142.41,142.38,3.56296049]
[1723810188733,14.34541091,142.41,142.38,3.56296049]
[1723810190144,10.83521091,142.41,142.38,3.56296049]
[1723810190341,0.04521091,142.41,142.39,3.5106]
[1723810190639,0.04521091,142.41,142.38,0.05206049]
[1723810191340,0.04521091,142.41,142.39,3.5105]
[1723810191642,0.04521091,142.41,142.38,0.05206049]
[1723810191936,0.04521091,142.41,142.38,3.56286049]
[1723810192261,10.79,142.4,142.38,3.56286049]
[1723810196042,10.83521091,142.41,142.38,3.56286049]
[1723810199352,10.83521091,142.41,142.39,3.5106]
[1723810201251,10.79,142.4,142.39,3.5106]
[1723810201856,10.79,142.4,142.38,3.56286049]
[1723810202350,10.79,142.4,142.38,0.05206049]
[1723810203848,14.3005,142.4,142.38,0.05206049]
[1723810204044,10.79,142.39,142.38,0.05206049]
[1723810204851,14.3006,142.39,142.38,0.05206049]
[1723810206545,3.5112,142.37,142.31,6.813]
[1723810206749,10.79,142.32,142.29,1.2538]
[1723810207048,10.79,142.32,142.3,3.5127]
[1723810207455,10.79,142.33,142.3,3.5127]
[1723810207659,10.79,142.31,142.3,0.04891685]
[1723810208944,14.3026,142.31,142.3,0.04891685]
[1723810210354,10.79,142.31,142.25,3.8606]
[1723810210557,10.79,142.28,142.25,2.6146]
[1723810210854,10.79,142.26,142.23,7.6744]
[1723810211075,10.79,142.26,142.22,1.28]
[1723810211550,14.3039,142.26,142.22,4.7947]
[1723810211954,10.79,142.24,142.23,0.04553734]
[1723810212543,14.3043,142.24,142.23,0.04553734]
[1723810214051,18.4643,142.24,142.23,0.04553734]
[1723810214248,7.6743,142.24,142.23,0.04553734]
[1723810214458,3.5151,142.21,142.18,2.6134]
[1723810214654,10.79,142.21,142.18,2.6134]
[1723810215297,10.79,142.21,142.18,1.3006]
[1723810215472,3.516,142.18,142.14,53.45169533]
[1723810215668,10.79,142.18,142.11,15.49411388]
[1723810215865,10.79,142.18,142.15,0.05193463]
[1723810216064,0.05129499,142.16,142.15,0.05193463]
[1723810217164,10.84129499,142.16,142.15,0.05193463]
[1723810218066,0.05129499,142.16,142.15,0.05193463]
[1723810218879,30.58759499,142.16,142.15,0.05193463]
[1723810219059,34.74759499,142.16,142.15,0.05193463]
[1723810220560,30.58759499,142.16,142.15,0.05193463]
[1723810220764,7.72759499,142.16,142.15,0.05193463]
[1723810220952,0.05129499,142.16,142.15,0.05193463]
[1723810222563,3.56759499,142.16,142.15,0.05193463]
[1723810224866,30.58759499,142.16,142.15,0.05193463]
[1723810225066,3.517,142.14,142.1,1.3432]
[1723810225268,30.537,142.14,142.1,1.3432]
[1723810225961,27.02,142.11,141.94,7.0433]
[1723810226171,27.02,142.07,142.0,2.6369]
[1723810226362,3.5189,142.06,142.0,2.6369]
[1723810226683,7.6789,142.06,142.01,3.5199]
[1723810226967,3.5195,142.03,142.02,0.05214859]
[1723810227223,0.04792676,142.04,142.02,0.05214859]
[1723810227467,3.5199,142.02,141.97,3.5209]
[1723810227870,31.2,142.03,141.97,3.5209]
[1723810228079,30.5401,142.01,141.96,3.5212]
[1723810228282,27.02,142.01,141.95,3.9406]
[1723810228576,27.02,142.01,141.97,0.05098615]
[1723810228577,4.2333153,142.0,141.97,0.05098615]
[1723810229370,0.0533153,142.0,141.97,0.05098615]
[1723810229774,4.3533153,142.0,141.97,0.05098615]
[1723810230181,4.3533153,142.0,141.98,3.5206]
[1723810230478,4.3533153,142.0,141.97,0.05098615]
[1723810231480,7.8737153,142.0,141.97,0.05098615]
[1723810232076,4.3,141.99,141.97,0.05098615]
[1723810232281,3.5737153,142.0,141.97,0.05098615]
[1723810232481,4.3,141.99,141.97,0.05098615]
[1723810232880,3.5737153,142.0,141.97,0.05098615]
[1723810232881,0.0533153,142.0,141.97,0.05098615]
[1723810233879,3.5737153,142.0,141.97,0.05098615]
[1723810234079,0.0533153,142.0,141.97,0.05098615]
[1723810234515,30.5407,141.99,141.97,0.05098615]
[1723810234877,27.02,141.99,141.97,0.05098615]
[1723810235787,3.5212,141.97,141.92,3.5221]
[1723810235991,27.02,141.96,141.92,3.5221]
[1723810236181,27.02,141.96,141.93,3.522]
[1723810236381,30.5413,141.96,141.91,1.3306]
[1723810236584,27.02,141.96,141.91,1.3306]
[1723810236787,0.04779354,141.95,141.92,0.04615914]
[1723810236984,3.56939354,141.95,141.92,0.04615914]
[1723810237186,27.02,141.94,141.92,0.04615914]
[1723810237690,31.32,141.94,141.92,0.04615914]
[1723810237994,27.02,141.94,141.92,0.04615914]
[1723810238522,0.04779354,141.95,141.92,0.04615914]
[1723810239392,27.02,141.94,141.92,0.04615914]
[1723810239886,0.04779354,141.95,141.92,0.04615914]
[1723810240289,7.8207,141.99,141.92,0.04615914]
[1723810240493,3.5207,141.99,141.9,27.02]
[1723810240686,31.32,142.0,141.9,27.02]
[1723810240886,34.8404,142.0,141.95,3.5213]
[1723810241087,27.02,142.02,141.94,3.50078121]
[1723810241288,31.32,142.05,141.95,6.8019]
[1723810241594,3.5194,142.04,141.99,3.5205]
[1723810242093,3.5194,142.04,142.0,3.5202]
[1723810242287,30.5391,142.05,142.0,3.5202]
[1723810242487,0.05027629,142.03,142.01,0.050501]
[1723810242694,0.05027629,142.03,142.01,3.570501]
[1723810242901,0.05027629,142.03,142.01,0.050501]
[1723810244392,0.05027629,142.03,142.01,3.570501]
[1723810244694,0.05027629,142.03,142.01,0.050501]
[1723810245000,4.3,142.07,142.04,3.5192]
[1723810245195,30.5382,142.09,142.04,3.5192]
[1723810245394,30.5382,142.09,142.02,1.3014]
[1723810245592,27.02,142.09,142.03,1.2976]
[1723810246091,27.02,142.09,142.03,5.5976]
[1723810246296,0.04540642,142.07,142.05,3.56432959]
[1723810246594,0.04540642,142.07,142.05,0.04542959]
[1723810247502,0.04540642,142.07,142.05,3.56422959]
[1723810248489,0.04540642,142.07,142.05,0.04542959]
[1723810249089,0.04540642,142.07,142.05,3.56432959]
[1723810249290,0.04540642,142.07,142.05,0.04542959]
[1723810249798,0.04540642,142.07,142.06,3.5188]
[1723810250214,4.82623543,142.14,142.05,0.04542959]
[1723810250215,230.0,142.2,142.05,0.04542959]
[1723810250399,230.0,142.2,142.04,28.378]
[1723810250400,27.02,142.14,142.06,4.3]
[1723810250716,7.74947888,142.16,142.06,4.3]
[1723810250717,27.02,142.1,142.06,4.3]
[1723810250902,27.02,142.1,142.06,7.8186]
[1723810251092,27.02,142.1,142.04,1.358]
[1723810251313,27.02,142.1,142.06,0.04930144]
[1723810251314,0.04846764,142.08,142.06,0.04930144]
[1723810251491,0.04846764,142.08,142.06,3.56790144]
[1723810251697,0.04846764,142.08,142.06,0.04930144]
[1723810252291,0.04846764,142.08,142.07,3.5185]
[1723810254891,0.04846764,142.08,142.06,3.56800144]
[1723810256502,0.04846764,142.08,142.07,3.5185]
[1723810258406,4.3,142.16,142.06,0.04930144]
[1723810258701,27.02,142.14,142.04,32.678]
[1723810258940,27.02,142.1,142.07,3.5184]
[1723810259702,27.06725977,142.1,142.07,3.57171893]
[1723810260204,27.06725977,142.1,142.08,3.5183]
[1723810260905,27.06725977,142.1,142.07,0.05331893]
[1723810262138,27.02,142.08,142.07,0.05331893]
[1723810262407,27.02,142.08,142.03,1.2976]
[1723810262713,27.02,142.06,142.03,3.5195]
[1723810262902,27.02,142.06,142.02,1.3014]
[1723810263300,27.02,142.06,141.98,4.36]
[1723810263705,30.5388,142.06,142.03,0.04435207]
[1723810263908,0.04566126,142.05,142.03,0.04435207]
[1723810264114,0.04566126,142.05,142.04,3.5193]
[1723810264310,0.04566126,142.05,142.03,0.04435207]
[1723810266406,30.5393,142.04,142.03,0.04435207]
[1723810266612,30.5393,142.04,141.97,1.3114]
[1723810266613,27.02,142.04,141.97,1.3114]
[1723810266814,27.02,142.01,141.97,1.3114]
[1723810267009,27.02,142.01,141.81,7.35409362]
[1723810267236,27.02,142.01,141.91,4.36]
[1723810267408,30.5401,142.01,141.96,3.5211]
[1723810267619,30.5401,142.01,141.97,0.05133148]
[1723810267808,0.05012435,142.0,141.97,0.05133148]
[1723810268015,3.57052435,142.0,141.97,0.05133148]
[1723810268215,27.02,141.99,141.97,0.05133148]
[1723810269115,30.5407,141.99,141.97,0.05133148]
[1723810269313,27.02,141.99,141.94,3.5216]
[1723810269535,4.41012435,142.0,141.87,3.50321018]
[1723810269536,30.5417,141.95,141.87,3.50321018]
[1723810269722,31.38,141.95,141.84,27.02]
[1723810270113,3.5219,141.94,141.84,27.02]
[1723810270413,3.5219,141.94,141.88,3.523]
[1723810270613,27.02,141.93,141.81,8.2744]
[1723810270820,27.02,141.93,141.88,0.05040058]
[1723810270821,0.04634813,141.9,141.88,0.05040058]
[1723810274921,27.02,141.89,141.88,0.05040058]
[1723810276016,0.04634813,141.9,141.88,0.05040058]
[1723810276409,4.40634813,141.9,141.88,3.57350058]
[1723810276613,4.40634813,141.9,141.88,0.05040058]
[1723810277011,0.04634813,141.9,141.88,0.05040058]
[1723810278217,0.04634813,141.9,141.88,3.57350058]
[1723810278629,0.04634813,141.9,141.89,3.523]
[1723810279021,0.04634813,141.9,141.88,0.05040058]
[1723810279222,30.58914813,141.9,141.88,0.05040058]
[1723810279619,27.06634813,141.9,141.88,0.05040058]
[1723810280919,31.42634813,141.9,141.81,2.5599]
[1723810281125,27.02,141.87,141.81,2.5599]
[1723810281546,27.02,141.87,141.81,3.5248]
[1723810281822,27.02,141.87,141.78,1.3629]
[1723810282016,27.02,141.89,141.78,1.3629]
[1723810282223,0.04549526,141.85,141.83,0.04438949]
[1723810283022,3.56959526,141.85,141.83,0.04438949]
[1723810283222,27.06549526,141.85,141.83,0.04438949]
[1723810283818,3.5242,141.84,141.83,0.04438949]
[1723810284014,7.8842,141.84,141.83,0.04438949]
[1723810285532,4.36,141.84,141.83,0.04438949]
[1723810285850,0.04549526,141.85,141.83,0.04438949]
[1723810286023,3.5242,141.84,141.83,0.04438949]
[1723810286617,0.04549526,141.85,141.83,0.04438949]
[1723810286825,3.56959526,141.85,141.83,0.04438949]
[1723810287222,0.04549526,141.85,141.83,0.04438949]
[1723810287417,27.06549526,141.85,141.83,0.04438949]
[1723810288624,3.5242,141.84,141.83,0.04438949]
[1723810288824,27.06549526,141.85,141.83,0.04438949]
[1723810289730,0.04549526,141.85,141.83,0.04438949]
[1723810290932,0.04549526,141.85,141.84,3.5242]
[1723810293630,0.04549526,141.85,141.83,0.04438949]
[1723810297327,0.04549526,141.85,141.76,4.46]
[1723810297658,33.81,141.86,141.8,3.5251]
[1723810298437,0.05199674,141.84,141.82,0.04979617]
[1723810298737,3.57619674,141.84,141.82,0.04979617]
[1723810299426,0.05199674,141.84,141.82,0.04979617]
[1723810302328,3.57639674,141.84,141.82,0.04979617]
[1723810302528,0.05199674,141.84,141.82,0.04979617]
[1723810302936,3.5245,141.83,141.82,0.04979617]
[1723810304936,37.38639674,141.84,141.82,0.04979617]
[1723810305136,3.57639674,141.84,141.82,0.04979617]
[1723810305943,3.5245,141.83,141.82,0.04979617]
[1723810306439,7.9845,141.83,141.82,0.04979617]
[1723810307342,3.5252,141.81,141.78,3.5256]
[1723810307743,41.78375514,141.83,141.78,3.5256]
[1723810307946,41.78375514,141.83,141.77,3.5259]
[1723810308144,33.81,141.8,141.75,1.3428]
[1723810308645,0.04729081,141.79,141.76,0.04977271]
[1723810309049,0.04729081,141.79,141.77,3.5258]
[1723810309236,0.04729081,141.79,141.76,0.04977271]
[1723810309882,0.04729081,141.79,141.76,3.57587271]
[1723810310151,0.04729081,141.79,141.76,0.04977271]
[1723810310375,0.04729081,141.79,141.76,3.57597271]
[1723810310547,0.04729081,141.79,141.76,0.04977271]
[1723810310948,0.04729081,141.79,141.76,3.57587271]
[1723810311750,0.04729081,141.79,141.77,3.5258]
[1723810312051,0.04729081,141.79,141.76,0.04977271]
[1723810312253,0.04729081,141.79,141.76,3.57587271]
[1723810313148,3.57289081,141.79,141.76,0.04977271]
[1723810313448,0.04729081,141.79,141.76,0.04977271]
[1723810314349,0.04729081,141.79,141.76,3.57597271]
[1723810314753,0.04729081,141.79,141.76,0.04977271]
[1723810316650,27.09,141.78,141.76,0.04977271]
[1723810316846,31.55,141.78,141.72,2.5936]
[1723810317049,27.09,141.75,141.72,6.1208]
[1723810317352,27.09,141.75,141.72,2.5936]
[1723810317547,27.09,141.75,141.69,1.307]
[1723810317752,27.09,141.75,141.69,4.8349]
[1723810317986,4.46,141.74,141.69,1.307]
[1723810318163,4.46,141.74,141.71,0.04488626]
[1723810318164,3.5271,141.73,141.71,0.04488626]
[1723810318451,27.09,141.72,141.71,0.04488626]
[1723810319169,30.6172,141.72,141.71,0.04488626]
[1723810319469,27.09,141.72,141.67,1.3113]
[1723810319776,3.5277,141.71,141.67,1.3113]
[1723810319965,27.09,141.72,141.67,1.3113]
[1723810320464,4.52,141.72,141.67,1.3113]
[1723810320666,4.56560531,141.73,141.68,0.04659675]
[1723810321057,4.56560531,141.73,141.68,1.29399675]
[1723810321258,27.09,141.78,141.68,28.38399675]
[1723810321492,27.09,141.78,141.68,32.8574]
[1723810321672,3.5264,141.76,141.68,5.7674]
[1723810321960,27.09,141.78,141.68,5.7674]
[1723810322158,3.5261,141.77,141.72,3.5272]
[1723810322366,27.09,141.78,141.7,3.49083669]
[1723810322665,0.04592045,141.76,141.73,0.05148916]
[1723810323063,27.13592045,141.76,141.73,0.05148916]
[1723810323268,3.5265,141.75,141.73,0.05148916]
[1723810323667,27.13592045,141.76,141.73,0.05148916]
[1723810323867,27.09,141.74,141.64,1.3571]
[1723810324171,3.5279,141.7,141.65,4.7842]
[1723810324468,31.61,141.71,141.65,1.2553]
[1723810324873,31.61,141.71,141.67,0.04746213]
[1723810325072,0.04801004,141.69,141.67,0.04746213]
[1723810325276,27.13801004,141.69,141.67,0.04746213]
[1723810325468,30.66601004,141.69,141.67,0.04746213]
[1723810325974,27.09,141.68,141.5,247.1958]
[1723810326182,27.09,141.66,141.58,2.6023]
[1723810326485,30.6189,141.66,141.6,3.5301]
[1723810326676,30.6189,141.66,141.58,2.6023]
[1723810326875,35.1389,141.66,141.58,2.6023]
[1723810327077,3.5285,141.67,141.58,29.6923]
[1723810327276,3.5285,141.67,141.6,27.09]
[1723810327277,0.04956815,141.63,141.6,27.09]
[1723810327474,7.0524,141.77,141.58,2.6023]
[1723810327475,31.61,141.68,141.58,29.6923]
[1723810327780,31.61,141.68,141.59,3.54797151]
[1723810327978,31.61,141.68,141.58,29.6923]
[1723810328179,3.5291,141.65,141.58,2.6023]
[1723810328383,27.09,141.66,141.58,2.6023]
[1723810328675,4.52,141.68,141.6,0.04781811]
[1723810328676,0.04743781,141.63,141.6,0.04781811]
[1723810328882,4.56743781,141.63,141.6,0.04781811]
[1723810329877,3.5299,141.62,141.6,0.04781811]
[1723810330472,3.53,141.61,141.6,0.04781811]
[1723810331478,27.09,141.62,141.51,3.5323]
[1723810331778,27.09,141.56,141.51,3.5323]
[1723810331975,31.63,141.56,141.51,3.5323]
[1723810332176,31.63,141.56,141.47,3.59294763]
[1723810332378,3.5317,141.55,141.47,3.45493383]
[1723810332580,27.09,141.54,141.46,2.6389]
[1723810332881,27.09,141.58,141.5,27.09]
[1723810333103,27.09,141.56,141.46,2.6389]
[1723810333381,0.05054434,141.52,141.46,2.6389]
[1723810333775,0.05054434,141.52,141.46,29.7289]